bitfinex/quotes_ETHUSD_20250916
["timestamp","ask_amount","ask_price","bid_price","bid_amount"]
[1758016080360,0.0004,4515.2,4515.1,6.18259037]
[1758016080549,0.0004,4515.2,4515.1,6.64869037]
[1758016081381,0.0004,4515.2,4515.1,6.93299037]
[1758016081931,0.0004,4515.2,4515.1,6.64869037]
[1758016082650,0.0004,4515.2,4515.1,4.4339]
[1758016083188,0.0004,4515.2,4515.1,3.9678]
[1758016083567,0.0016,4515.4,4515.1,3.9678]
[1758016083752,0.0016,4515.4,4515.1,3.6778]
[1758016083953,0.66741073,4515.4,4515.1,3.6778]
[1758016084653,0.66741073,4515.4,4515.1,3.6788]
[1758016085081,0.002,4515.2,4515.1,3.6788]
[1758016088381,0.002,4515.2,4515.1,3.7009479]
[1758016088891,0.002,4515.2,4515.1,6.20573827]
[1758016089054,0.002,4515.2,4515.1,6.64969037]
[1758016090188,0.002,4515.2,4515.1,6.93399037]
[1758016090791,0.002,4515.2,4515.1,6.64969037]
[1758016093367,0.002,4515.2,4515.1,6.93399037]
[1758016093805,0.002,4515.2,4515.1,21.43399037]
[1758016098187,0.0012,4515.2,4515.1,21.43399037]
[1758016103580,0.0012,4515.2,4515.1,21.54439037]
[1758016104005,0.0012,4515.2,4515.1,21.63313717]
[1758016104182,0.002,4515.7,4515.6,6.50267478]
[1758016104381,0.002,4515.7,4515.6,11.88247478]
[1758016104576,0.002,4515.7,4515.6,13.05337478]
[1758016104818,0.002,4515.7,4515.6,27.55337478]
[1758016106383,0.0012,4515.7,4515.6,27.55337478]
[1758016109000,0.0012,4515.7,4515.6,18.52874513]
[1758016109001,0.2919,4515.7,4515.6,18.52874513]
[1758016109318,1.2472,4515.7,4515.6,18.52874513]
[1758016109517,1.2472,4515.7,4515.6,22.20474513]
[1758016111626,1.2472,4515.7,4515.6,18.52874513]
[1758016111830,1.2472,4515.7,4515.6,1.7038]
[1758016111989,1.2472,4515.7,4515.6,5.3788]
[1758016113243,1.2472,4515.7,4515.6,7.59334513]
[1758016118858,0.0012,4515.7,4515.6,7.59334513]
[1758016119157,0.0012,4515.7,4515.6,7.70374513]
[1758016119922,0.0012,4515.7,4515.6,8.47994513]
[1758016120520,0.0012,4515.7,4515.6,7.99334513]
[1758016120753,0.0012,4515.7,4515.6,8.47994513]
[1758016122124,0.0012,4515.7,4515.6,7.70374513]
[1758016122526,0.0012,4515.7,4515.6,7.99334513]
[1758016122932,0.0012,4515.7,4515.6,8.47994513]
[1758016123361,0.0004,4515.7,4515.6,8.76424513]
[1758016125060,0.0004,4515.7,4515.6,23.26424513]
[1758016129174,0.0116,4515.9,4515.8,2.21444705]
[1758016129372,0.0116,4515.9,4515.8,5.91159152]
[1758016129575,0.0116,4515.9,4515.8,5.89024705]
[1758016130870,0.0116,4515.9,4515.8,6.19454705]
[1758016131174,0.3222,4515.9,4515.8,5.89024705]
[1758016132171,0.0116,4515.9,4515.8,6.34414705]
[1758016132470,0.0116,4515.9,4515.8,6.64844705]
[1758016132875,0.0116,4515.9,4515.8,21.14844705]
[1758016133572,0.0116,4515.9,4515.8,21.54314705]
[1758016133959,0.0116,4515.9,4515.8,21.25884705]
[1758016136243,0.0116,4515.9,4515.8,20.50064705]
[1758016136442,0.0116,4515.9,4515.8,16.82564705]
[1758016136638,0.0116,4515.9,4515.8,20.50064705]
[1758016139483,1.2252,4515.9,4515.8,20.50064705]
[1758016141055,0.3249,4515.9,4515.8,20.50064705]
[1758016142183,0.0116,4515.9,4515.8,20.50064705]
[1758016142399,0.0116,4515.9,4515.8,20.79524705]
[1758016142871,0.0116,4515.9,4515.8,20.50064705]
[1758016143379,0.0116,4515.9,4515.8,6.00064705]
[1758016143578,0.0116,4515.9,4515.8,6.75964705]
[1758016143906,0.0116,4515.9,4515.8,21.25964705]
[1758016144104,0.002,4516.2,4515.8,21.25964705]
[1758016144105,0.002,4516.2,4515.8,26.40392561]
[1758016144303,0.002,4516.2,4516.0,2.21434898]
[1758016144504,0.002,4516.2,4516.1,5.91144293]
[1758016144709,0.002,4516.2,4516.1,6.93259994]
[1758016146034,0.002,4516.2,4516.1,21.43259994]
[1758016146471,0.002,4517.0,4516.5,2.21410384]
[1758016146678,0.002,4517.0,4516.5,7.61324487]
[1758016146878,0.002,4517.0,4516.5,8.63440384]
[1758016147088,1e-08,4517.0,4516.9,2.21390776]
[1758016147293,1e-08,4517.0,4516.9,11.05632539]
[1758016147610,0.002,4517.6,4517.4,2.21366272]
[1758016147611,1e-08,4517.5,4517.4,2.21366272]
[1758016147796,1e-08,4517.5,4517.4,7.61579934]
[1758016147998,1e-08,4517.5,4517.4,8.63696272]
[1758016148198,1e-08,4517.5,4517.4,23.13696272]
[1758016148633,0.00120001,4517.6,4517.5,2.21361372]
[1758016148979,0.00120001,4517.6,4517.5,3.25691372]
[1758016149180,0.00120001,4517.6,4517.5,3.27904985]
[1758016150286,0.00120001,4517.6,4517.5,17.77904985]
[1758016150489,0.00120001,4517.6,4517.5,17.47261372]
[1758016151525,0.00040001,4517.6,4517.5,17.47261372]
[1758016153325,0.31370001,4517.6,4517.5,16.71361372]
[1758016153617,1.21400001,4517.6,4517.5,20.39061372]
[1758016154022,0.75930001,4517.6,4517.5,20.39061372]
[1758016154185,1.21400001,4517.6,4517.5,20.50101372]
[1758016154920,1.21400001,4517.6,4517.5,20.50181372]
[1758016157422,0.31370001,4517.6,4517.5,20.50181372]
[1758016157596,1.21400001,4517.6,4517.5,20.50181372]
[1758016158803,0.75930001,4517.6,4517.5,20.50181372]
[1758016159489,0.00040001,4517.6,4517.5,20.50181372]
[1758016160092,0.00040001,4517.6,4517.5,20.79641372]
[1758016160409,0.00040001,4517.6,4517.5,20.50181372]
[1758016161935,0.00040001,4517.6,4517.5,21.25881372]
[1758016162510,0.00040001,4517.6,4517.5,21.54311372]
[1758016164697,0.00040001,4517.6,4517.5,21.43271372]
[1758016164998,0.00040001,4517.6,4517.5,21.54311372]
[1758016165400,0.00040001,4517.6,4517.5,21.63180797]
[1758016165622,1e-08,4517.9,4517.8,2.21346673]
[1758016165799,1e-08,4517.9,4517.8,6.02380139]
[1758016166001,1e-08,4517.9,4517.8,6.75866673]
[1758016168331,1e-08,4518.4,4517.9,2.21341773]
[1758016168562,1e-08,4518.9,4518.4,3.0]
[1758016168696,1e-08,4518.9,4518.8,8.55425545]
[1758016168900,1e-08,4518.9,4518.8,29.75325545]
[1758016169099,1e-08,4518.9,4518.8,31.16491318]
[1758016171535,0.02,4519.9,4519.4,2.21268309]
[1758016171833,0.02,4519.9,4519.8,2.21248727]
[1758016172048,0.4649,4519.9,4519.8,5.91048727]
[1758016172257,0.7499,4519.9,4519.8,6.02088727]
[1758016172469,0.7499,4519.9,4519.8,20.52088727]
[1758016172764,1.2341,4519.9,4519.8,20.52088727]
[1758016173371,1.2341,4519.9,4519.8,20.51988727]
[1758016173738,1.2333,4519.9,4519.8,20.51988727]
[1758016174131,1.2325,4519.9,4519.8,20.51988727]
[1758016175923,0.1104,4521.1,4519.8,22.87989271]
[1758016176124,0.5042,4520.9,4520.4,6.48928632]
[1758016176358,0.02,4520.9,4520.8,2.21199787]
[1758016176523,0.02,4520.9,4520.8,5.96711784]
[1758016176727,0.305,4520.9,4520.8,5.94499787]
[1758016176952,1.2341,4520.9,4520.8,5.94499787]
[1758016177985,0.02,4520.9,4520.8,6.38212717]
[1758016178129,0.7892,4520.9,4520.8,6.38212717]
[1758016178328,1.2341,4520.9,4520.8,6.38212717]
[1758016178537,1.2341,4520.9,4520.8,20.88212717]
[1758016178741,0.307,4520.9,4520.8,20.88212717]
[1758016180066,0.022,4520.9,4520.8,20.88212717]
[1758016180868,0.307,4520.9,4520.8,20.88212717]
[1758016182161,1.2361,4520.9,4520.8,20.88212717]
[1758016182668,1.2361,4520.9,4520.8,17.14912717]
[1758016182961,1.2361,4520.9,4520.8,20.88412717]
[1758016185680,1.2361,4520.9,4520.8,20.88112717]
[1758016186057,1.2361,4520.9,4520.8,20.99152717]
[1758016186270,1.2361,4520.9,4520.8,20.99232717]
[1758016188994,1.2361,4520.9,4520.8,15.0483293]
[1758016189298,1.2361,4520.9,4520.8,0.1112]
[1758016189455,1.2361,4520.9,4520.8,2.6648]
[1758016190085,1.2361,4520.9,4520.8,3.7308]
[1758016190789,3.44804894,4520.9,4520.8,3.7308]
[1758016191087,1.2361,4520.9,4520.8,3.7308]
[1758016191298,1.2361,4520.9,4520.8,0.0008]
[1758016191512,1.2361,4520.9,4520.8,3.7308]
[1758016193267,1.2361,4520.9,4520.8,3.7298]
[1758016193679,1.2361,4520.9,4520.8,3.7288]
[1758016194286,0.022,4520.9,4520.8,3.7288]
[1758016194573,1.2326,4520.9,4520.8,3.7288]
[1758016195810,1.2318,4520.9,4520.8,3.7288]
[1758016196186,1.2318,4520.9,4520.8,3.75091997]
[1758016196686,1.2318,4520.9,4520.8,3.7288]
[1758016197306,1.2318,4520.9,4520.8,5.94079787]
[1758016197603,1.2318,4520.9,4520.8,3.7288]
[1758016197808,1.2318,4520.9,4520.8,3.75091997]
[1758016198964,1.231,4520.9,4520.8,3.7288]
[1758016203108,0.3098,4520.9,4520.8,5.94079787]
[1758016203403,0.0204,4520.9,4520.8,6.36389787]
[1758016203559,0.0204,4520.9,4520.8,6.85759787]
[1758016203755,0.0204,4520.9,4520.8,3.8392]
[1758016204257,0.3333,4520.9,4520.8,3.8392]
[1758016204455,1.2582,4520.9,4520.8,3.8392]
[1758016205280,1.2582,4520.9,4520.8,6.05119787]
[1758016206079,1.2582,4520.9,4520.8,3.8392]
[1758016207379,1.2582,4520.9,4520.8,6.05119787]
[1758016207578,1.2582,4520.9,4520.8,3.8392]
[1758016207779,1.2582,4520.9,4520.8,6.05119787]
[1758016208009,1.2582,4520.9,4520.8,3.8392]
[1758016210109,1.2582,4520.9,4520.8,3.8402]
[1758016210324,0.3333,4520.9,4520.8,6.07431784]
[1758016210503,0.0204,4520.9,4520.8,6.05219787]
[1758016211020,0.0204,4520.9,4520.8,6.36489787]
[1758016211319,0.0204,4520.9,4520.8,6.85859787]
[1758016211520,0.0204,4520.9,4520.8,7.14289787]
[1758016213613,0.0204,4520.9,4520.8,21.64289787]
[1758016216589,0.0204,4520.9,4520.8,20.86489787]
[1758016216788,0.0204,4520.9,4520.8,20.55219787]
[1758016217168,0.0204,4520.9,4520.8,21.35859787]
[1758016218031,0.0196,4520.9,4520.8,21.35859787]
[1758016219520,0.0196,4520.9,4520.8,20.86489787]
[1758016220188,0.3325,4520.9,4520.8,20.53919787]
[1758016220514,1.2918,4520.9,4520.8,6.03919787]
[1758016221915,0.3325,4520.9,4520.8,6.03919787]
[1758016222121,0.0196,4520.9,4520.8,6.82149787]
[1758016223097,0.0196,4520.9,4520.8,21.32149787]
[1758016224187,0.0188,4520.9,4520.8,21.32149787]
[1758016225196,0.0188,4520.9,4520.8,20.82679787]
[1758016225431,0.0188,4520.9,4520.8,21.60579787]
[1758016225805,0.0188,4520.9,4520.8,21.32049787]
[1758016236727,0.0188,4520.9,4520.8,20.82579787]
[1758016237610,0.0188,4520.9,4520.8,21.32049787]
[1758016238846,0.002,4521.4,4521.3,7.34213383]
[1758016239153,0.022,4521.9,4521.8,2.21150869]
[1758016239340,0.4594,4522.6,4522.5,2.21116639]
[1758016239538,0.7458,4522.6,4522.5,20.42116639]
[1758016239840,1.2457,4522.6,4522.5,20.42116639]
[1758016240011,1.2449,4522.6,4522.5,20.42116639]
[1758016240808,1.2449,4522.6,4522.5,16.71116639]
[1758016241017,1.2449,4522.6,4522.5,5.92016639]
[1758016242507,1.2449,4522.6,4522.5,2.21116639]
[1758016242845,0.2864,4522.6,4522.5,5.92016639]
[1758016243830,1.2457,4522.6,4522.5,5.92016639]
[1758016244132,1.2457,4522.6,4522.5,2.21116639]
[1758016244309,1.2457,4522.6,4522.5,5.92416639]
[1758016245444,1.2457,4522.6,4522.5,2.21116639]
[1758016245646,1.2457,4522.6,4522.4,2.21119586]
[1758016245822,0.4594,4522.5,4522.3,2.2112241]
[1758016246024,0.9593,4522.5,4522.4,3.713]
[1758016246228,0.002,4522.6,4522.4,5.92421528]
[1758016246553,0.2864,4522.5,4522.4,5.92421528]
[1758016246928,1.2457,4522.5,4522.4,5.92421528]
[1758016247450,0.002,4522.6,4522.5,2.21116639]
[1758016247655,0.002,4522.6,4522.5,2.52087805]
[1758016247822,0.002,4522.6,4522.5,2.23327805]
[1758016248451,0.2884,4522.6,4522.5,2.23327805]
[1758016248765,0.002,4522.6,4522.5,2.32156639]
[1758016248955,0.002,4522.6,4522.5,3.27856639]
[1758016249458,0.0012,4522.6,4522.5,3.27936639]
[1758016249656,0.0012,4522.6,4522.5,16.99956639]
[1758016249864,0.0012,4522.6,4522.5,17.49426639]
[1758016250062,0.0012,4522.6,4522.5,21.21026639]
[1758016250245,0.0012,4522.6,4522.5,21.49536639]
[1758016256861,0.0012,4522.6,4522.5,17.77936639]
[1758016257061,0.0012,4522.6,4522.5,21.20726639]
[1758016257355,0.0012,4522.6,4522.5,20.71256639]
[1758016258063,0.0012,4522.6,4522.5,21.18926639]
[1758016258974,0.0012,4522.6,4522.5,21.29966639]
[1758016259397,0.2883,4522.6,4522.5,16.82236639]
[1758016259609,1.2002,4522.6,4522.5,20.53336639]
[1758016260245,0.2883,4522.6,4522.5,20.53336639]
[1758016260843,0.0012,4522.6,4522.5,21.31706639]
[1758016261657,0.0012,4522.6,4522.5,20.53336639]
[1758016261868,0.0012,4522.6,4522.5,20.84036639]
[1758016262177,0.0004,4522.6,4522.5,20.84036639]
[1758016262579,0.0004,4522.6,4522.5,20.53336639]
[1758016263088,0.2875,4522.6,4522.5,20.53336639]
[1758016263268,0.2875,4522.6,4522.5,20.53436639]
[1758016263779,0.2875,4522.6,4522.5,16.82336639]
[1758016263780,1.1994,4522.6,4522.5,16.82336639]
[1758016263979,1.1994,4522.6,4522.5,20.53236639]
[1758016265150,0.7233,4522.6,4522.5,20.53236639]
[1758016265604,1.1994,4522.6,4522.5,16.82336639]
[1758016265800,1.1994,4522.6,4522.5,20.53236639]
[1758016269567,0.2875,4522.6,4522.5,20.53236639]
[1758016269973,1.1994,4522.6,4522.5,20.53236639]
[1758016271595,1.1994,4522.6,4522.5,16.82336639]
[1758016271771,1.1994,4522.6,4522.5,20.53036639]
[1758016271980,1.1994,4522.6,4522.5,16.82336639]
[1758016272202,1.1994,4522.6,4522.5,20.52936639]
[1758016274608,1.1986,4522.6,4522.5,20.52936639]
[1758016276190,0.2867,4522.6,4522.5,20.52936639]
[1758016276392,1.1986,4522.6,4522.5,20.52936639]
[1758016276978,1.1986,4522.6,4522.5,20.52736639]
[1758016280034,1.1986,4522.6,4522.5,2.32336639]
[1758016280331,1.1986,4522.6,4522.5,6.02636639]
[1758016281040,1.2006,4522.6,4522.5,6.02636639]
[1758016281254,1.2006,4522.6,4522.5,2.32336639]
[1758016281400,6.33098058,4522.6,4522.5,3.7048]
[1758016283052,6.33098058,4522.6,4522.5,3.47207626]
[1758016283253,6.33098058,4522.6,4522.5,3.47287626]
[1758016284206,6.33018058,4522.6,4522.5,3.47287626]
[1758016284945,8.54129807,4522.6,4522.5,3.47287626]
[1758016285435,6.33018058,4522.6,4522.5,3.47287626]
[1758016285837,6.33018058,4522.6,4522.5,0.0008]
[1758016286017,6.33018058,4522.6,4522.5,3.7028]
[1758016286614,6.33018058,4522.6,4522.5,0.0008]
[1758016286808,6.33018058,4522.6,4522.5,3.7028]
[1758016287014,8.54129807,4522.6,4522.5,3.7028]
[1758016287237,6.33018058,4522.6,4522.5,3.7028]
[1758016287734,12.33329807,4522.6,4522.5,0.0008]
[1758016293732,16.03529807,4522.6,4522.5,0.0008]
[1758016295038,13.82418058,4522.6,4522.5,0.0008]
[1758016295863,16.03529807,4522.6,4522.5,0.0008]
[1758016296284,3.2879,4522.6,4522.5,0.0008]
[1758016296575,3.002,4522.6,4522.5,3.29406639]
[1758016296882,0.002,4522.6,4522.5,3.40446639]
[1758016299757,0.0012,4522.6,4522.5,3.40446639]
[1758016299958,0.0012,4522.6,4522.5,3.40546639]
[1758016300267,0.0012,4522.6,4522.5,17.90546639]
[1758016301969,0.0012,4522.6,4522.5,17.61916639]
[1758016302171,0.0012,4522.6,4522.5,17.13716639]
[1758016302341,0.0012,4522.6,4522.5,17.61916639]
[1758016303571,0.0012,4522.6,4522.5,3.11916639]
[1758016303743,0.2962,4522.6,4522.5,2.32336639]
[1758016304366,0.2962,4522.6,4522.5,6.02336639]
[1758016306650,0.2962,4522.6,4522.5,3.8122]
[1758016306858,1.1978,4522.6,4522.5,3.8112]
[1758016307053,1.1978,4522.6,4522.5,6.02236639]
[1758016307784,1.1978,4522.6,4522.5,5.90085275]
[1758016308450,1.1978,4522.6,4522.5,3.8102]
[1758016308888,1.1978,4522.6,4522.5,6.02136639]
[1758016309092,0.2962,4522.6,4522.5,6.02136639]
[1758016309257,0.0012,4522.6,4522.5,6.02136639]
[1758016314576,0.0012,4522.6,4522.5,6.79646639]
[1758016314988,0.3058,4522.6,4522.5,6.02136639]
[1758016315208,1.2682,4522.6,4522.5,3.8102]
[1758016316173,1.2682,4522.6,4522.5,6.02136639]
[1758016316372,1.2682,4522.6,4522.5,3.8102]
[1758016316681,1.2682,4522.6,4522.5,6.02136639]
[1758016316859,1.2682,4522.6,4522.5,3.8102]
[1758016318561,0.3058,4522.6,4522.5,0.1112]
[1758016318924,8.53367804,4522.6,4522.5,0.0008]
[1758016320373,3.0,4522.5,4522.4,3.46502191]
[1758016320663,0.9552,4522.5,4522.4,3.46502191]
[1758016320888,1.2468,4522.5,4522.4,3.46502191]
[1758016321599,1.2468,4522.5,4522.4,3.697]
[1758016322496,4.2468,4522.5,4522.4,3.697]
[1758016323690,0.0012,4522.6,4522.5,2.21116639]
[1758016323898,0.0012,4522.6,4522.5,3.00837805]
[1758016324077,0.0012,4522.6,4522.5,3.27256639]
[1758016324706,0.0012,4522.6,4522.5,2.98626639]
[1758016324907,0.0004,4522.6,4522.5,0.7751]
[1758016325105,0.0004,4522.6,4522.5,0.3001]
[1758016325990,0.0004,4522.6,4522.5,2.51126639]
[1758016326191,0.0004,4522.6,4522.5,0.3001]
[1758016327388,0.0004,4522.6,4522.5,2.51126639]
[1758016327694,0.0004,4522.6,4522.5,0.3001]
[1758016327895,0.0004,4522.6,4522.4,5.90820209]
[1758016328419,0.0004,4522.6,4522.5,2.21116639]
[1758016328795,0.0004,4522.6,4522.5,0.1104]
[1758016330897,0.0004,4522.6,4522.5,0.1112]
[1758016331116,0.0004,4522.6,4522.5,2.32236639]
[1758016331322,0.0004,4522.6,4522.5,0.1112]
[1758016332684,1.2472,4522.6,4522.5,3.6948]
[1758016333118,1.2472,4522.6,4522.5,3.46202284]
[1758016333320,1.2472,4522.6,4522.3,0.1104]
[1758016333488,0.7789,4522.6,4522.3,0.1104]
[1758016333687,0.7789,4522.6,4522.4,3.695]
[1758016333944,0.4869,4522.5,4522.4,3.695]
[1758016334120,1.2468,4522.5,4522.3,0.1104]
[1758016334424,0.2916,4522.5,4522.4,3.694]
[1758016335027,1.2468,4522.5,4522.4,3.694]
[1758016339829,1.2488,4522.5,4522.4,3.694]
[1758016341037,1.2488,4522.5,4522.4,3.6948]
[1758016342035,1.2488,4522.5,4522.4,0.0008]
[1758016342241,1.2488,4522.5,4522.4,3.6948]
[1758016342754,6.45996639,4522.5,4522.4,0.0008]
[1758016343051,6.45996639,4522.5,4522.4,3.6938]
[1758016343227,4.2488,4522.5,4522.4,3.6938]
[1758016345434,4.2488,4522.5,4522.4,3.46107767]
[1758016346555,6.45996639,4522.5,4522.4,3.46107767]
[1758016346847,4.2488,4522.5,4522.4,3.46107767]
[1758016347354,3.2936,4522.5,4522.4,3.46107767]
[1758016348258,3.7901,4522.5,4522.4,3.46107767]
[1758016348451,4.2567,4522.5,4522.4,3.46107767]
[1758016348987,3.002,4522.5,4522.4,3.46107767]
[1758016349522,5.50637994,4522.5,4522.4,3.692]
[1758016349723,6.46947994,4522.5,4522.4,3.692]
[1758016350123,6.46867994,4522.5,4522.4,3.692]
[1758016350336,4.2575,4522.5,4522.4,3.692]
[1758016351220,3.7909,4522.5,4522.4,3.692]
[1758016351421,3.7909,4522.5,4522.4,3.6928]
[1758016351648,4.2575,4522.5,4522.4,3.6928]
[1758016351955,3.2944,4522.5,4522.4,3.6928]
[1758016352964,3.0012,4522.5,4522.4,3.6928]
[1758016353670,3.0012,4522.5,4522.4,4.4613]
[1758016354666,3.0012,4522.5,4522.4,3.9885]
[1758016356867,3.0012,4522.5,4522.4,3.6928]
[1758016357871,3.0012,4522.5,4522.4,3.46032538]
[1758016360868,3.2944,4522.5,4522.4,3.46032538]
[1758016361567,4.2575,4522.5,4522.4,3.46032538]
[1758016362374,3.0012,4522.5,4522.4,3.75602538]
[1758016362552,3.0012,4522.5,4522.4,4.22882538]
[1758016362752,3.0012,4522.5,4522.4,3.75602538]
[1758016362954,3.0012,4522.5,4522.4,3.46032538]
[1758016366387,3.2944,4522.5,4522.4,3.46032538]
[1758016366679,3.0012,4522.5,4522.4,3.46032538]
[1758016367587,3.0012,4522.5,4522.4,3.6878]
[1758016370291,3.0012,4522.5,4522.4,3.45576728]
[1758016370989,3.0012,4522.5,4522.4,3.6878]
[1758016372688,3.0012,4522.5,4522.4,4.4952]
[1758016373703,3.0012,4522.5,4522.4,3.6878]
[1758016375323,3.3111,4522.5,4522.4,3.6878]
[1758016375482,4.2485,4522.5,4522.4,3.6878]
[1758016381192,6.45966639,4522.5,4522.4,3.6878]
[1758016382394,4.2485,4522.5,4522.4,3.6878]
[1758016382769,4.2485,4522.5,4522.4,3.45495934]
[1758016382988,4.2485,4522.5,4522.4,3.45575934]
[1758016383598,6.45966639,4522.5,4522.4,3.45575934]
[1758016384897,4.2485,4522.5,4522.4,3.45575934]
[1758016385086,3.7854,4522.5,4522.4,3.45575934]
[1758016385290,3.3103,4522.5,4522.4,3.45575934]
[1758016388701,5.52146639,4522.5,4522.4,3.45575934]
[1758016389273,5.99486639,4522.5,4522.4,3.45575934]
[1758016389494,6.47406639,4522.5,4522.4,3.45575934]
[1758016390008,4.2629,4522.5,4522.4,3.45575934]
[1758016390575,3.7837,4522.5,4522.4,3.45575934]
[1758016390801,3.3103,4522.5,4522.4,3.45575934]
[1758016390967,3.0004,4522.5,4522.4,3.45575934]
[1758016391173,3.0004,4522.5,4522.4,4.21255934]
[1758016391701,3.0004,4522.5,4522.4,3.45575934]
[1758016395376,3.0004,4522.5,4522.4,3.22293185]
[1758016396598,3.0004,4522.5,4522.4,3.52073185]
[1758016396803,3.0004,4522.5,4522.4,3.97973185]
[1758016397180,3.0004,4522.5,4522.4,3.22293185]
[1758016397714,3.0004,4522.5,4522.4,3.6878]
[1758016398826,3.3149,4522.5,4522.4,3.6878]
[1758016399038,3.7941,4522.5,4522.4,3.6878]
[1758016399346,6.47866639,4522.5,4522.4,0.0008]
[1758016399482,6.68621748,4522.5,4522.4,0.0008]
[1758016400103,6.47866639,4522.5,4522.4,0.0008]
[1758016400615,6.47786639,4522.5,4522.4,0.0008]
[1758016401517,6.68539831,4522.5,4522.4,0.0008]
[1758016402626,6.68539325,4522.5,4522.4,0.0008]
[1758016406502,5.73279325,4522.5,4522.4,0.0008]
[1758016406823,6.67149325,4522.5,4522.4,0.0008]
[1758016409324,10.35849325,4522.5,4522.4,0.0008]
[1758016410828,10.3584718,4522.5,4522.4,0.0008]
[1758016411725,10.15096639,4522.5,4522.4,0.0008]
[1758016412727,10.94296639,4522.5,4522.4,0.0008]
[1758016413033,11.15046917,4522.5,4522.4,0.0008]
[1758016413638,11.81530753,4522.5,4522.4,0.0008]
[1758016413793,11.81730753,4522.5,4522.4,0.0008]
[1758016420340,8.66744114,4522.5,4522.4,0.0008]
[1758016420506,8.35294114,4522.5,4522.4,0.0008]
[1758016420910,10.56410753,4522.5,4522.4,0.0008]
[1758016422144,8.35294114,4522.5,4522.4,0.0008]
[1758016422642,3.87394114,4522.5,4522.4,0.3041]
[1758016422842,3.66643836,4522.5,4522.4,0.7824]
[1758016423044,3.0016,4522.5,4522.4,1.0687]
[1758016425560,3.0016,4522.5,4522.4,0.7824]
[1758016425847,3.0008,4522.5,4522.4,0.7824]
[1758016429846,3.0008,4522.5,4522.4,0.3041]
[1758016430045,0.002,4522.5,4522.4,3.27991528]
[1758016430252,0.002,4522.5,4522.4,3.39031528]
[1758016430851,0.002,4522.5,4522.4,1.1791]
[1758016431855,0.002,4522.5,4522.4,3.39031528]
[1758016433653,0.002,4522.5,4522.4,4.8651]
[1758016433852,0.002,4522.5,4522.4,4.5788]
[1758016434042,0.002,4522.5,4522.4,6.79001528]
[1758016434239,0.002,4522.5,4522.4,4.5788]
[1758016435727,0.002,4522.5,4522.4,6.79001528]
[1758016436128,0.002,4522.5,4522.4,4.5788]
[1758016438433,0.002,4522.5,4522.4,3.7972]
[1758016438786,7.25136639,4522.5,4522.4,0.0008]
[1758016439066,7.45868383,4522.5,4522.4,0.0008]
[1758016439228,7.4586736,4522.5,4522.4,0.0008]
[1758016439966,7.54770084,4522.5,4522.4,0.0008]
[1758016442060,11.23270084,4522.5,4522.4,0.0008]
[1758016442562,11.23266366,4522.5,4522.4,0.0008]
[1758016443571,11.35701411,4522.5,4522.4,0.0008]
[1758016443750,15.63032278,4522.5,4522.4,0.0008]
[1758016443949,16.31514407,4522.5,4522.4,0.0008]
[1758016445055,16.31514407,4522.5,4521.9,0.001]
[1758016445056,2.21061088,4522.0,4521.9,2e-08]
[1758016445284,13.37618958,4522.0,4521.9,2e-08]
[1758016445447,14.62238958,4522.0,4521.9,2e-08]
[1758016446450,14.71105101,4522.0,4521.9,2e-08]
[1758016446655,14.50378098,4522.0,4521.9,2e-08]
[1758016451058,14.50298098,4522.0,4521.9,2e-08]
[1758016455177,14.50298098,4522.0,4521.9,0.00080002]
[1758016456010,15.29498098,4522.0,4521.9,0.00080002]
[1758016456219,15.62587368,4522.0,4521.9,0.00080002]
[1758016459281,15.62582998,4522.0,4521.9,0.00080002]
[1758016459677,6.00365542,4521.5,4521.4,1e-08]
[1758016459916,13.96196409,4521.5,4521.4,1e-08]
[1758016460118,15.21126409,4521.5,4521.4,1e-08]
[1758016460804,15.20126409,4521.5,4521.4,1e-08]
[1758016461005,15.68276409,4521.5,4521.4,1e-08]
[1758016462010,16.01351916,4521.5,4521.4,1e-08]
[1758016465317,16.01351916,4521.5,4521.4,0.00080001]
[1758016466817,16.01360119,4521.5,4521.4,0.00080001]
[1758016467238,20.28690986,4521.5,4521.4,0.00080001]
[1758016467442,16.01360119,4521.5,4521.4,0.00080001]
[1758016468233,16.22054357,4521.5,4521.4,0.00080001]
[1758016470657,16.22054521,4521.5,4521.4,0.00080001]
[1758016471166,15.73724521,4521.5,4521.4,0.00080001]
[1758016471473,15.73724521,4521.5,4519.5,0.2863]
[1758016471474,10.27745334,4520.5,4519.5,0.2863]
[1758016471630,10.27745334,4520.5,4519.3,0.4903]
[1758016471631,16.20229869,4520.5,4519.3,0.4903]
[1758016471831,17.9382644,4520.5,4519.6,0.4903]
[1758016472026,17.9382644,4520.5,4518.8,0.12]
[1758016472027,3.792,4520.4,4519.0,0.4903]
[1758016472231,10.27760016,4520.2,4519.2,0.4903]
[1758016472434,11.11970314,4520.2,4519.2,0.4903]
[1758016472631,12.07470314,4520.2,4519.2,0.4903]
[1758016472860,12.07470314,4520.2,4519.8,3e-08]
[1758016472861,3.00443832,4519.9,4519.8,3e-08]
[1758016473087,14.29484172,4519.9,4519.8,3e-08]
[1758016473244,15.55384172,4519.9,4519.8,3e-08]
[1758016473655,15.83721087,4519.9,4519.8,3e-08]
[1758016474261,15.71304699,4519.9,4519.8,3e-08]
[1758016474657,16.04414526,4519.9,4519.8,3e-08]
[1758016475233,15.91998341,4519.9,4519.8,3e-08]
[1758016475435,16.04413837,4519.9,4519.8,0.00080003]
[1758016476163,16.04333837,4519.9,4519.8,0.00080003]
[1758016479294,15.9191791,4519.9,4519.8,0.00080003]
[1758016479595,20.31643131,4519.9,4519.8,0.00080003]
[1758016479908,3.00478102,4519.2,4519.1,0.02]
[1758016480088,13.96408969,4519.2,4519.1,0.02]
[1758016480774,14.57438969,4519.2,4519.1,0.02]
[1758016483299,15.83338969,4519.2,4519.1,0.02]
[1758016483605,15.35008969,4519.2,4519.1,0.02]
[1758016483803,14.87838969,4519.2,4519.1,0.02]
[1758016484005,14.57438969,4519.2,4519.1,0.02]
[1758016485604,14.57438969,4519.2,4519.1,2e-08]
[1758016485817,15.43943079,4519.2,4519.1,2e-08]